bitfinex/quotes_SOLUSD_20260115
["timestamp","ask_amount","ask_price","bid_price","bid_amount"]
[1768499039492,7.39861918,143.99,143.95,3.79982095]
[1768499040490,7.39861918,143.99,143.95,0.46638055]
[1768499040683,10.73205958,143.99,143.95,0.46638055]
[1768499040992,0.45335564,143.98,143.95,0.46638055]
[1768499041495,7.39886864,143.98,143.95,0.46638055]
[1768499042972,0.45335564,143.97,143.93,3.3334404]
[1768499043175,0.45335564,143.96,143.92,13.32792761]
[1768499043586,7.39977669,143.96,143.92,13.32792761]
[1768499043786,7.39977669,143.96,143.92,10.74792761]
[1768499045503,7.39977669,143.96,143.92,7.41448721]
[1768499045691,7.39977669,143.96,143.92,10.74792761]
[1768499046111,2.58,143.97,143.93,7.41417158]
[1768499046112,9.52603157,143.97,143.93,7.41417158]
[1768499046281,3.03335564,143.99,143.96,0.46638055]
[1768499046801,9.97828478,143.99,143.95,3.3334404]
[1768499047190,9.97828478,143.99,143.94,0.46638055]
[1768499047386,9.97828478,143.99,143.95,3.79982095]
[1768499048381,9.97828478,143.99,143.96,0.46638055]
[1768499049006,9.97828478,143.99,143.95,10.74646132]
[1768499049214,6.94492914,143.99,143.96,0.46638055]
[1768499049385,0.45335564,144.01,143.97,3.79982095]
[1768499050292,0.45335564,144.01,143.98,3.79982095]
[1768499050482,0.45335564,144.01,143.98,3.3334404]
[1768499050999,0.45335564,144.01,143.97,10.74539035]
[1768499051807,0.45335564,144.01,143.97,7.41194995]
[1768499052111,0.45335564,144.01,143.93,2.58]
[1768499052112,0.45335564,144.04,144.01,0.46638055]
[1768499052406,0.45335564,144.04,144.01,3.79982095]
[1768499053599,0.45335564,144.05,144.02,3.3334404]
[1768499053792,9.95508031,144.06,144.02,3.79982095]
[1768499054723,9.95508031,144.06,144.03,3.3334404]
[1768499054919,9.95508031,144.06,144.02,0.46638055]
[1768499055091,9.95508031,144.06,144.03,3.3334404]
[1768499055603,7.39508031,144.06,144.03,3.3334404]
[1768499055795,7.39508031,144.06,144.02,3.79982095]
[1768499055989,0.45335564,144.05,144.01,0.46638055]
[1768499056299,0.45335564,144.05,144.01,10.74377558]
[1768499057023,0.45335564,144.04,143.99,0.46638055]
[1768499057186,0.45335564,144.04,143.99,7.41112394]
[1768499057389,0.45335564,144.04,143.99,3.79982095]
[1768499057609,0.45335564,144.04,143.99,10.74469781]
[1768499058194,0.45335564,144.04,144.0,3.3334404]
[1768499058603,0.45335564,144.04,143.99,10.74469781]
[1768499058801,7.39635362,144.03,143.99,10.74469781]
[1768499059001,6.94299798,144.03,143.99,6.94487686]
[1768499059207,6.94299798,144.03,143.95,7.04408856]
[1768499059208,0.45335564,144.01,143.97,3.79982095]
[1768499060419,7.39732273,144.01,143.97,10.74570636]
[1768499061089,7.39732273,144.01,143.97,7.41226596]
[1768499061292,7.39732273,144.01,143.97,10.74570636]
[1768499061910,7.39732273,144.01,143.97,7.41226596]
[1768499062097,7.39732273,144.01,143.97,10.74570636]
[1768499062815,7.39732273,144.01,143.97,3.79982095]
[1768499063114,7.39732273,144.01,143.97,10.74566385]
[1768499064215,0.49429448,144.03,144.0,0.46178492]
[1768499064414,0.49429448,144.03,144.0,3.79522532]
[1768499064415,3.03429448,144.03,144.0,3.79522532]
[1768499064616,3.03429448,144.03,144.0,0.46178492]
[1768499064916,0.49429448,144.02,143.99,3.79522532]
[1768499065219,3.82773488,144.02,143.98,0.45224784]
[1768499065720,0.48163797,144.01,143.98,0.45224784]
[1768499066297,7.42572413,144.01,143.98,0.45224784]
[1768499068751,7.4252013,144.02,143.98,7.39754635]
[1768499069020,0.48163797,144.01,143.98,0.45224784]
[1768499070212,7.42564413,144.01,143.98,0.45224784]
[1768499070719,0.48163797,144.0,143.96,7.39840914]
[1768499071320,0.48163797,144.0,143.97,0.45224784]
[1768499071525,0.48163797,143.98,143.94,7.39928042]
[1768499071730,3.81507837,143.98,143.94,7.39928042]
[1768499071916,0.48163797,143.97,143.94,0.45224784]
[1768499072824,7.42757886,143.97,143.92,6.32568824]
[1768499073011,10.76101926,143.97,143.93,0.45224784]
[1768499073436,10.76101926,143.97,143.93,7.40004128]
[1768499074425,7.42757886,143.97,143.93,7.40004128]
[1768499074922,7.42757886,143.97,143.93,6.94779344]
[1768499075134,10.76070043,143.98,143.95,0.45224784]
[1768499075326,7.42726003,143.98,143.95,0.45224784]
[1768499075925,10.76070043,143.98,143.94,7.39954548]
[1768499076540,7.42726003,143.98,143.94,7.39954548]
[1768499077836,10.76070043,143.98,143.94,7.39954548]
[1768499079417,7.42726003,143.98,143.94,7.39954548]
[1768499079622,9.46514769,143.99,143.95,0.45224784]
[1768499079932,13.28022606,143.99,143.95,0.45224784]
[1768499080328,3.81507837,143.97,143.93,7.40000554]
[1768499080525,3.81507837,143.97,143.93,0.45224784]
[1768499081846,10.76134019,143.97,143.93,0.45224784]
[1768499083019,7.42789979,143.97,143.93,0.45224784]
[1768499083216,10.76134019,143.97,143.93,0.45224784]
[1768499084829,3.81507837,143.96,143.93,0.45224784]
[1768499085049,3.81507837,143.95,143.91,0.45224784]
[1768499085253,0.48163797,143.94,143.9,7.40129457]
[1768499085639,3.81507837,143.94,143.9,7.40129457]
[1768499086336,10.76243409,143.94,143.9,7.40129457]
[1768499086530,7.42899369,143.94,143.9,7.40129457]
[1768499086730,10.76243409,143.94,143.9,0.45224784]
[1768499086931,10.76243409,143.94,143.9,7.40150385]
[1768499088760,7.42899369,143.94,143.9,7.40150385]
[1768499090360,7.42899369,143.94,143.91,0.45224784]
[1768499091964,0.48163797,143.94,143.91,7.40101038]
[1768499092138,7.42905757,143.94,143.9,6.94911977]
[1768499092457,7.42905757,143.94,143.91,0.46470099]
[1768499092641,7.42905757,143.94,143.9,7.41382076]
[1768499092840,0.49143646,143.93,143.9,7.41382076]
[1768499093041,0.49143646,143.93,143.89,7.41429012]
[1768499095156,0.49143646,143.92,143.88,10.28359389]
[1768499095365,0.49143646,143.92,143.89,7.41433364]
[1768499095545,0.49143646,143.92,143.89,10.74777404]
[1768499095860,0.49143646,143.92,143.89,7.41433364]
[1768499096437,0.49143646,143.92,143.88,3.3334404]
[1768499096752,0.49143646,143.91,143.88,6.95015385]
[1768499096950,0.49143646,143.91,143.88,7.41485484]
[1768499097146,0.49143646,143.91,143.87,7.61528407]
[1768499097662,0.49143646,143.91,143.87,0.66470099]
[1768499097841,0.49143646,143.89,143.87,0.2]
[1768499098160,2.5,143.9,143.87,0.2]
[1768499098854,5.8334404,143.9,143.87,0.2]
[1768499099161,12.78271821,143.9,143.87,0.2]
[1768499099347,14.66506818,143.9,143.87,0.2]
[1768499100039,0.41785425,143.89,143.85,6.95157893]
[1768499100448,0.41785425,143.88,143.85,6.95157893]
[1768499100642,12.16633906,143.88,143.84,0.66470099]
[1768499100951,12.16633906,143.88,143.82,7.15291543]
[1768499101147,12.16633906,143.88,143.82,5.88049136]
[1768499101352,6.95054869,143.88,143.82,5.88049136]
[1768499101540,6.94996571,143.89,143.84,7.4166678]
[1768499101742,2.5,143.91,143.89,0.46470099]
[1768499102286,2.5,143.93,143.89,0.46470099]
[1768499102646,9.44813536,143.93,143.89,0.46470099]
[1768499103661,9.44813536,143.93,143.89,7.41442882]
[1768499103662,6.94813536,143.93,143.89,7.41442882]
[1768499103849,6.94656643,143.96,143.92,0.46470099]
[1768499104042,6.94656643,143.96,143.92,5.68049136]
[1768499104460,2.5,143.95,143.9,0.46470099]
[1768499104668,6.94733916,143.94,143.9,0.46470099]
[1768499104968,6.88733917,143.94,143.9,0.46470099]
[1768499105166,0.49143646,144.0,143.93,5.68049136]
[1768499105463,0.49143646,143.99,143.94,5.68049136]
[1768499106165,7.43636319,143.99,143.94,5.68049136]
[1768499106649,7.43636319,143.99,143.95,5.21579037]
[1768499107749,9.91636319,143.99,143.96,5.21579037]
[1768499107949,27.27868001,143.99,143.96,5.21579037]
[1768499108160,27.27868001,143.99,143.94,0.46470099]
[1768499108548,0.49143646,143.95,143.89,6.94959084]
[1768499108750,0.49143646,143.94,143.9,5.21579037]
[1768499109777,7.43889812,143.94,143.89,7.41429183]
[1768499110297,7.37889813,143.94,143.89,7.41429183]
[1768499110453,6.94746166,143.94,143.89,7.41429183]
[1768499110848,12.16325203,143.94,143.89,7.41429183]
[1768499112275,0.49143646,143.93,143.89,7.41429183]
[1768499112468,0.43143647,143.93,143.89,7.41429183]
[1768499116167,7.37943642,143.93,143.89,7.41429183]
[1768499116477,0.49143646,143.99,143.93,0.46470099]
[1768499116661,2.97143646,143.98,143.93,0.46470099]
[1768499116849,5.21579037,143.97,143.9,0.46470099]
[1768499117164,0.49143646,143.95,143.91,0.46470099]
[1768499117359,7.43851346,143.95,143.91,0.46470099]
[1768499117791,0.49143646,143.93,143.89,0.46470099]
[1768499117956,7.43851346,143.95,143.89,0.46470099]
[1768499118154,9.91851346,143.95,143.9,0.46470099]
[1768499119687,9.42656937,143.96,143.92,0.46470099]
[1768499121284,6.94656937,143.96,143.92,0.46470099]
[1768499122083,0.46745097,143.95,143.91,7.42100607]
[1768499124282,0.46745097,143.95,143.92,6.94829327]
[1768499124486,0.46745097,143.96,143.92,7.42091141]
[1768499124670,7.41394983,143.96,143.92,7.42091141]
[1768499124859,9.87394983,143.96,143.92,7.42091141]
[1768499125064,0.46745097,143.96,143.93,0.49966355]
[1768499125369,9.87391537,143.96,143.93,0.49966355]
[1768499126987,9.87391537,143.96,143.9,9.9287524]
[1768499126988,0.48400272,143.94,143.9,9.9287524]
[1768499127183,5.69979309,143.94,143.9,0.49966355]
[1768499127483,2.94400272,143.93,143.89,0.49966355]
[1768499127685,0.48400272,143.91,143.88,0.49966355]
[1768499127861,0.42400273,143.91,143.88,0.49966355]
[1768499128184,0.42400273,143.91,143.88,7.44977787]
[1768499128377,2.46,143.93,143.89,7.4493343]
[1768499128978,9.40787539,143.93,143.89,7.4493343]
[1768499129789,9.89187811,143.93,143.89,7.4493343]
[1768499129969,9.89187811,143.93,143.89,0.49966355]
[1768499130765,15.10766848,143.93,143.89,0.49966355]
[1768499131083,0.48400272,143.9,143.85,17.87823169]
[1768499131303,0.48400272,143.9,143.84,7.67579037]
[1768499131304,5.21579037,143.89,143.84,2.95966355]
[1768499131482,5.21579037,143.89,143.85,0.49966355]
[1768499132090,5.21579037,143.89,143.85,7.45131325]
[1768499132896,12.16584163,143.89,143.85,7.45131325]
[1768499133270,12.64984435,143.89,143.85,7.45131325]
[1768499133587,12.64984435,143.89,143.85,0.49966355]
[1768499133892,0.48400272,143.88,143.85,0.49966355]
[1768499134277,5.69979309,143.88,143.85,0.49966355]
[1768499134593,6.95005126,143.89,143.83,0.49966355]
[1768499134594,5.69979309,143.87,143.83,0.49966355]
[1768499134971,12.65081136,143.87,143.83,0.49966355]
[1768499135174,17.85838592,143.89,143.84,0.49966355]
[1768499135498,2.46,143.88,143.84,0.49966355]
[1768499136072,0.48400272,143.87,143.83,0.49966355]
[1768499136293,5.69979309,143.87,143.83,0.49966355]
[1768499136487,0.48400272,143.86,143.82,7.65261448]
[1768499136679,5.69979309,143.86,143.82,0.69966355]
[1768499136886,5.69979309,143.86,143.82,0.2]
[1768499137092,7.43396266,143.89,143.84,0.49966355]
[1768499137280,7.43396266,143.89,143.85,0.49966355]
[1768499137281,9.87396266,143.89,143.85,0.49966355]
[1768499137808,9.81396267,143.89,143.85,0.49966355]
[1768499137989,2.44,143.9,143.86,0.49966355]
[1768499138580,2.38000001,143.9,143.86,0.49966355]
[1768499139292,2.92400272,143.92,143.88,0.49966355]
[1768499140404,7.43252147,143.92,143.88,7.44975507]
[1768499140598,9.87252147,143.92,143.88,7.44975507]
[1768499141097,104.0,143.93,143.89,5.21579037]
[1768499141400,0.48400272,143.95,143.91,0.49966355]
[1768499141701,0.48400272,143.95,143.92,0.49966355]
[1768499141897,6.94607065,143.97,143.92,0.49966355]
[1768499141898,0.48400272,143.96,143.92,0.49966355]
[1768499142383,7.43061995,143.96,143.92,0.49966355]
[1768499142581,7.43061995,143.96,143.92,7.4477989]
[1768499144800,0.48400272,143.96,143.92,7.4477989]
[1768499144996,9.38609296,143.97,143.93,0.49966355]
[1768499144997,9.87009568,143.97,143.93,0.49966355]
[1768499145880,6.9455827,143.98,143.94,0.49966355]
[1768499146080,9.86958542,143.98,143.94,0.49966355]
[1768499148186,7.42958542,143.98,143.94,0.49966355]
[1768499148386,9.86898483,143.99,143.95,0.49966355]
[1768499148900,15.0847752,143.99,143.95,0.49966355]
[1768499149097,32.44709202,143.99,143.95,0.49966355]
[1768499149614,27.23130165,143.99,143.95,0.49966355]
[1768499151309,7.40182578,144.0,143.96,0.49058806]
[1768499151682,0.45719758,144.0,143.96,5.70637843]
[1768499152293,7.40172163,144.0,143.96,5.70637843]
[1768499152594,7.40172163,144.0,143.96,0.49058806]
[1768499153198,12.617512,144.0,143.96,0.49058806]
[1768499153913,0.50200742,143.96,143.94,2.91058806]
[1768499154089,0.44200743,143.96,143.94,0.49058806]
[1768499155417,0.44200743,143.96,143.94,12.65361577]
[1768499157205,0.38200744,143.96,143.94,12.65361577]
[1768499157714,0.32200745,143.96,143.94,12.65361577]
[1768499158690,0.32200745,143.96,143.94,7.4378254]
[1768499158885,0.45719758,143.95,143.92,6.94818845]
[1768499159106,0.77920503,143.96,143.93,7.43829731]
[1768499159310,0.77920503,143.96,143.93,5.70637843]
[1768499159616,0.77920503,143.96,143.93,12.65386292]
[1768499160000,0.45719758,143.95,143.91,0.49058806]
[1768499160201,0.45719758,143.95,143.91,7.43910713]
[1768499160620,0.45719758,143.94,143.91,0.49058806]
[1768499160790,2.87719758,143.94,143.91,0.49058806]
[1768499160997,2.42,143.94,143.92,5.70637843]
[1768499161191,3.19920503,143.96,143.92,5.70637843]
[1768499161386,3.19920503,143.96,143.92,3.82541918]
[1768499161611,3.19920503,143.96,143.93,3.82541918]
[1768499161612,2.74200745,143.96,143.93,3.82541918]
[1768499162825,2.74200745,143.96,143.93,10.77315789]
[1768499163836,2.74200745,143.96,143.93,7.43832677]
[1768499165121,0.32200745,143.96,143.93,7.43832677]
[1768499166629,0.32200745,143.96,143.93,0.49058806]
[1768499166802,7.26842986,143.96,143.93,0.49058806]
[1768499167003,7.26842986,143.96,143.92,10.28291454]
[1768499167004,7.72562744,143.96,143.92,7.43867148]
[1768499167205,0.45719758,143.95,143.92,7.43867148]
[1768499168860,0.32200745,143.96,143.94,0.49058806]
[1768499169318,0.32200745,143.96,143.93,0.49058806]
[1768499170015,0.45719758,143.95,143.89,0.49058806]
[1768499170208,0.45719758,143.93,143.89,0.49058806]
[1768499170616,7.4051058,143.93,143.89,7.44029046]
[1768499171511,0.45719758,143.92,143.87,0.49058806]
[1768499171733,0.45719758,143.91,143.87,7.44091952]
[1768499172432,0.45719758,143.91,143.87,10.77575064]
[1768499172644,0.45719758,143.93,143.9,0.49058806]
[1768499172833,2.4,143.93,143.91,0.49058806]
[1768499173022,2.85719758,143.93,143.89,10.77513937]
[1768499173424,2.85719758,143.93,143.89,0.49058806]
[1768499174352,2.85719758,143.93,143.89,3.82541918]
[1768499174654,9.80523094,143.93,143.9,0.49058806]
[1768499175150,7.40523094,143.93,143.9,0.49058806]
[1768499175350,9.80523094,143.93,143.9,0.49058806]
[1768499176337,2.85719758,143.93,143.9,10.7746311]
[1768499176957,0.45719758,143.93,143.9,10.7746311]
[1768499177748,7.40465591,143.94,143.9,10.7746311]
[1768499177927,6.94720527,143.95,143.91,3.82541918]
[1768499178127,6.94720527,143.95,143.92,3.82541918]
[1768499178327,7.40440285,143.95,143.92,3.82541918]
[1768499178746,0.45719758,143.95,143.92,10.7736743]
[1768499179136,0.45719758,143.95,143.92,3.82541918]
[1768499179359,0.45719758,143.95,143.92,0.49058806]
[1768499179543,0.45719758,143.95,143.92,3.82541918]
[1768499180337,9.6685264,143.96,143.92,10.77354343]
[1768499180536,10.12572398,143.96,143.92,10.77354343]
[1768499180744,0.32200745,143.96,143.94,0.48720649]
[1768499182058,0.32200745,143.96,143.93,3.82203761]
[1768499182256,7.76174414,143.96,143.93,0.48720649]
[1768499183829,0.49330052,143.95,143.92,10.28308944]
[1768499184060,0.49330052,143.95,143.92,10.77029593]
[1768499184259,7.76174414,143.96,143.92,10.77029593]
[1768499184447,7.76174414,143.96,143.92,7.43546481]
[1768499184651,7.76174414,143.96,143.93,0.48720649]
[1768499186870,0.49450541,143.95,143.91,0.47075802]
[1768499187167,0.49450541,143.94,143.89,10.75518391]
[1768499187365,0.49450541,143.93,143.89,7.42035279]
[1768499187956,0.49450541,143.93,143.89,10.75518391]
[1768499188155,7.44257401,143.93,143.89,10.75518391]
[1768499188467,0.49450541,143.92,143.89,0.47075802]
[1768499188673,0.49450541,143.92,143.88,3.80558914]
[1768499189166,0.49450541,143.92,143.88,0.47075802]
[1768499189341,0.49450541,143.92,143.87,10.75613006]
[1768499190052,6.94875715,143.92,143.87,7.42129894]
[1768499190249,0.49450541,143.91,143.87,7.42129894]
[1768499190651,0.49450541,143.91,143.87,10.75613006]
[1768499191457,0.49450541,143.91,143.88,0.47075802]
[1768499192543,7.44331081,143.91,143.88,0.47075802]
[1768499195255,0.49450541,143.92,143.89,3.80558914]
[1768499195452,0.49450541,143.92,143.88,6.94992458]
[1768499195453,2.38,143.93,143.91,0.47075802]
[1768499195658,6.94755944,143.94,143.91,0.47075802]
[1768499195861,7.44206485,143.94,143.91,0.47075802]
[1768499196169,0.49450541,143.94,143.91,0.47075802]
[1768499198069,7.44154458,143.95,143.91,7.41952837]
[1768499198268,0.49450541,143.95,143.92,3.33483112]
[1768499198650,9.30655539,143.96,143.93,0.47075802]
[1768499199574,9.8010608,143.96,143.93,0.47075802]
[1768499199759,9.8010608,143.96,143.92,10.75375179]
[1768499201474,9.8010608,143.96,143.92,7.41892067]
[1768499201647,9.8010608,143.96,143.92,10.75375179]
[1768499201957,0.49450541,143.95,143.92,0.47075802]
[1768499202162,0.49450541,143.95,143.91,0.47075802]
[1768499202852,0.49450541,143.95,143.91,3.80558914]
[1768499203248,2.85450541,143.95,143.91,3.80558914]
[1768499203889,9.80168194,143.95,143.91,3.80558914]
[1768499204073,9.80168194,143.95,143.91,0.47075802]
[1768499204250,7.44168194,143.95,143.91,3.80558914]
[1768499204451,9.80168194,143.95,143.91,3.80558914]
[1768499204860,9.80168194,143.95,143.91,0.47075802]
[1768499205060,9.80168194,143.95,143.91,3.80558914]
[1768499205953,9.80168194,143.95,143.91,0.47075802]
[1768499206267,9.80168194,143.95,143.91,3.80558914]
[1768499207774,9.80168194,143.95,143.91,0.47075802]
[1768499208791,2.36,143.95,143.93,3.33483112]
[1768499208992,0.49450541,143.96,143.93,0.47075802]
[1768499209153,2.85450541,143.96,143.93,0.47075802]
[1768499209758,2.85450541,143.96,143.92,3.80558914]
[1768499210456,9.80135612,143.96,143.92,3.80558914]
[1768499210654,9.80135612,143.96,143.92,0.47075802]
[1768499211168,9.78842067,143.96,143.92,0.47075802]
[1768499211475,27.15435565,143.96,143.92,0.47075802]
[1768499211681,0.48156996,143.95,143.92,0.47075802]
[1768499213187,0.48156996,143.94,143.91,3.82784538]
[1768499213552,6.94727593,143.95,143.91,3.33483112]
[1768499213753,7.42884589,143.95,143.92,0.49301426]
[1768499216085,6.94727593,143.95,143.92,0.49301426]
[1768499216258,0.48156996,143.95,143.92,3.33483112]
[1768499216788,0.48156996,143.95,143.92,0.49301426]
[1768499218790,7.42867323,143.95,143.92,0.49301426]
[1768499219393,0.48156996,143.94,143.91,10.28322733]
[1768499219688,0.48156996,143.94,143.91,6.94839621]
[1768499220072,0.48156996,143.94,143.9,7.44216247]
[1768499220371,0.48156996,143.94,143.9,10.77699359]
[1768499220569,0.48156996,143.97,143.93,0.49301426]
[1768499220890,104.0,143.98,143.93,0.49301426]
[1768499220891,2.34,143.95,143.93,0.49301426]
[1768499221095,0.48156996,143.94,143.88,0.49301426]
[1768499221265,0.48156996,143.94,143.9,0.49301426]
[1768499221779,0.48156996,143.94,143.9,7.44202687]
[1768499221988,0.48156996,143.93,143.88,3.82784538]
[1768499222163,0.48156996,143.91,143.88,0.49301426]
[1768499223384,0.48156996,143.9,143.86,7.44395435]
[1768499223586,12.16354002,143.91,143.86,7.44395435]
[1768499223892,0.48156996,143.9,143.86,7.44395435]
[1768499224269,0.48156996,143.9,143.87,6.95069016]
[1768499224472,7.43052266,143.91,143.87,12.65829174]
[1768499224669,0.48156996,143.91,143.88,7.44315889]
[1768499225077,0.4329763,143.91,143.88,7.44315889]
[1768499226008,7.3818854,143.91,143.88,0.49301426]
[1768499228602,12.59647272,143.91,143.87,0.49301426]
[1768499229307,7.3818854,143.91,143.87,7.44367818]
[1768499229505,12.59647272,143.91,143.87,7.44367818]
[1768499230184,7.3818854,143.91,143.88,0.49301426]
[1768499230387,12.59647272,143.91,143.88,0.49301426]
[1768499231690,7.3818854,143.91,143.88,0.49301426]
[1768499231888,12.59647272,143.91,143.88,0.49301426]
[1768499232685,0.48156996,143.89,143.85,0.49301426]
[1768499232893,0.48156996,143.88,143.85,0.49301426]
[1768499234107,0.48156996,143.88,143.85,7.4445561]
[1768499235013,7.43030723,143.92,143.88,0.49301426]
[1768499235194,2.80156996,143.92,143.89,0.49301426]
[1768499235598,7.42907181,143.94,143.9,0.49301426]
[1768499235802,9.74907181,143.94,143.9,0.49301426]
[1768499236103,40.07540065,143.97,143.92,0.49301426]
[1768499236104,0.48156996,143.96,143.92,0.49301426]
[1768499236304,2.80156996,143.96,143.92,12.65562287]
[1768499236495,7.428084,143.96,143.93,0.49301426]
[1768499237090,7.428084,143.96,143.92,0.49301426]
[1768499237322,7.428084,143.96,143.89,12.65696616]
[1768499237323,0.48156996,143.93,143.89,12.65696616]
[1768499237488,2.32,143.94,143.92,0.49301426]
[1768499237694,2.32,143.94,143.91,0.49301426]
[1768499238324,9.74865331,143.95,143.92,0.49301426]
[1768499238813,9.68865332,143.95,143.92,0.49301426]
[1768499239015,9.26708335,143.95,143.91,7.44167356]
[1768499240720,0.48156996,143.98,143.94,0.49301426]
[1768499240927,2.80156996,143.98,143.94,5.70760158]
[1768499241820,2.32,143.98,143.94,5.70760158]
[1768499241996,0.45493629,143.97,143.92,12.61797116]
[1768499242734,0.45493629,143.96,143.92,6.94818585]
[1768499243034,0.45493629,143.96,143.92,7.40338384]
[1768499244007,7.4013399,143.96,143.92,7.40338384]
[1768499244620,7.34133991,143.96,143.92,7.40338384]
[1768499244806,7.34133991,143.96,143.92,12.61797116]
[1768499245007,6.94640361,143.96,143.92,7.40338384]
[1768499245818,12.16099093,143.96,143.91,12.64664401]
[1768499246233,2.3,143.95,143.91,7.43205669]
[1768499246521,2.77872753,143.95,143.91,0.48329213]
[1768499247632,6.94733916,143.94,143.91,0.48329213]
[1768499247850,0.47872753,143.93,143.87,0.48329213]
[1768499248135,0.47872753,143.91,143.87,12.64859146]
[1768499248304,0.47872753,143.91,143.87,7.43400414]
[1768499249323,7.42764671,143.91,143.87,7.43400414]
[1768499249932,0.47872753,143.9,143.87,0.48329213]
[1768499250229,5.63331486,143.9,143.86,0.48329213]
[1768499251018,5.21458732,143.89,143.85,7.43483143]
[1768499251221,5.21458732,143.9,143.85,7.43483143]
[1768499251403,9.24975328,143.89,143.85,0.48329213]
[1768499251608,5.21458732,143.88,143.83,0.48329213]
[1768499252008,0.47872753,143.87,143.83,0.48329213]
[1768499252935,0.47872753,143.87,143.83,7.43573851]
[1768499253230,5.69331485,143.87,143.83,0.48329213]
[1768499253811,12.58416108,143.87,143.83,0.48329213]
[1768499255325,7.36957376,143.87,143.83,0.48329213]
[1768499256224,7.36957376,143.87,143.83,7.43591929]
[1768499257020,7.36957376,143.87,143.83,0.48329213]
[1768499258613,12.58416108,143.87,143.83,0.48329213]
[1768499258816,12.52416109,143.87,143.83,0.48329213]
[1768499259342,12.16543354,143.87,143.83,0.48329213]
[1768499259739,12.16543354,143.87,143.82,7.63622949]
[1768499260243,6.95084622,143.87,143.83,0.48329213]
[1768499260426,6.89084623,143.87,143.83,0.48329213]
[1768499260748,6.89084623,143.87,143.84,0.48329213]
[1768499261242,9.17084623,143.87,143.84,0.48329213]
[1768499262435,104.47872753,143.91,143.86,0.48329213]
[1768499262747,0.47872753,143.91,143.88,0.48329213]
[1768499264444,0.47872753,143.91,143.88,7.43345834]
[1768499264643,0.47872753,143.91,143.88,0.48329213]
[1768499264837,9.70721702,143.92,143.88,0.48329213]
[1768499265045,0.47872753,143.91,143.88,0.48329213]
[1768499265940,5.21458732,143.93,143.89,0.48329213]
[1768499265941,9.70654938,143.93,143.89,0.48329213]
[1768499266152,0.47872753,143.92,143.89,0.48329213]
[1768499266755,9.22802166,143.93,143.89,12.64761814]
[1768499266953,9.22802166,143.93,143.9,0.48329213]
[1768499267348,9.70674919,143.93,143.9,0.48329213]
[1768499268047,14.92133651,143.93,143.89,0.48329213]
[1768499268222,0.47872753,143.92,143.89,0.48329213]
[1768499268426,5.69331485,143.92,143.88,0.48329213]
[1768499268631,12.64210228,143.91,143.87,0.48329213]
[1768499269036,2.75872753,143.9,143.86,7.43428635]
[1768499269749,7.97331485,143.9,143.86,7.43428635]
[1768499269949,5.69331485,143.89,143.86,0.48329213]
[1768499270126,5.69331485,143.89,143.85,7.43477748]
[1768499271054,12.64347278,143.89,143.85,0.48329213]
[1768499271242,0.45652519,143.88,143.83,12.64700393]
[1768499271438,5.67111251,143.87,143.83,7.43241661]
[1768499271862,0.45652519,143.87,143.83,7.43241661]
[1768499272045,5.67111251,143.88,143.84,0.47997585]
[1768499272242,0.45652519,143.87,143.83,7.43241661]
[1768499272452,12.62219499,143.87,143.83,7.43241661]
[1768499272959,14.90219499,143.87,143.83,7.43241661]
[1768499274033,9.23108248,143.87,143.84,0.47997585]
[1768499274837,9.68760767,143.87,143.84,0.47997585]
[1768499275252,9.68760767,143.87,143.83,0.47997585]
[1768499276461,9.68760767,143.87,143.82,12.36771622]
[1768499276462,0.45652519,143.86,143.82,7.63310475]
[1768499276754,7.40760767,143.87,143.83,7.43259122]
[1768499276951,2.71652519,143.9,143.85,0.47997585]
[1768499277154,14.88038283,143.9,143.86,0.47997585]
[1768499278138,9.66579551,143.9,143.86,0.47997585]
[1768499278462,14.88038283,143.9,143.86,0.47997585]
[1768499278864,110.94883671,143.91,143.88,0.47997585]
[1768499279041,111.4053619,143.91,143.88,0.47997585]
[1768499279645,116.61994922,143.91,143.87,0.47997585]
[1768499279846,0.45652519,143.9,143.87,0.47997585]
[1768499280053,0.3965252,143.9,143.87,0.47997585]
[1768499280239,0.3965252,143.9,143.86,0.47997585]
[1768499280456,0.3965252,143.9,143.85,12.16606736]
[1768499280457,5.21458732,143.9,143.85,0.47997585]
[1768499280857,6.94975328,143.89,143.85,0.47997585]
[1768499281663,14.4243406,143.89,143.85,0.47997585]
[1768499281859,9.20975328,143.89,143.85,0.47997585]
[1768499282058,9.66627847,143.89,143.85,0.47997585]
[1768499282557,9.66627847,143.89,143.84,0.47997585]
[1768499282558,5.67111251,143.88,143.84,0.47997585]
[1768499282960,7.40724458,143.87,143.83,0.47997585]
[1768499283149,7.34724459,143.87,143.83,0.47997585]
[1768499283547,12.56183191,143.87,143.83,0.47997585]
[1768499284247,7.34724459,143.87,143.83,0.47997585]
[1768499284653,12.56183191,143.87,143.83,0.47997585]
[1768499285062,7.34724459,143.87,143.84,0.47997585]
[1768499285451,22.59087996,143.88,143.84,0.47997585]
[1768499285452,17.37374685,143.9,143.84,0.47997585]
[1768499285771,9.66627847,143.89,143.85,0.47997585]
[1768499287259,13.00573949,143.89,143.85,0.47997585]
[1768499288080,0.45652519,143.88,143.85,0.47997585]
[1768499288379,0.45652519,143.88,143.84,0.47997585]
[1768499289080,9.66627847,143.89,143.85,0.47997585]